[Event "Late-Titled-Tuesday-Blitz-February-27-2024"]
[Site "Chess.com"]
[Date "2024.02.27"]
[Round "7"]
[White "Yahisalem"]
[Black "ChessFanNM"]
[Result "0-1"]
[WhiteElo "1998"]
[BlackElo "2320"]
[TimeControl "180+1"]
[EndTime "15:15:55 PST"]
[Termination "ChessFanNM won by checkmate"]

1. e4 {[%clk 0:03:00.9]} 1... c6 {[%clk 0:02:56.6]} 2. Nf3 {[%clk 0:03:00.4]}
2... d5 {[%clk 0:02:56.3]} 3. e5 {[%clk 0:03:00.5]} 3... Bg4 {[%clk 0:02:53.9]}
4. d4 {[%clk 0:02:58.4]} 4... e6 {[%clk 0:02:53.9]} 5. c3 {[%clk 0:02:57.5]}
5... c5 {[%clk 0:02:49.9]} 6. dxc5 {[%clk 0:02:57.5]} 6... Bxf3 {[%clk
0:02:44.3]} 7. Qxf3 {[%clk 0:02:55.3]} 7... Nd7 {[%clk 0:02:37.1]} 8. b4 {[%clk
0:02:49.7]} 8... Nxe5 {[%clk 0:02:35.2]} 9. Qg3 {[%clk 0:02:49.6]} 9... Ng6
{[%clk 0:02:20.4]} 10. Bb5+ {[%clk 0:02:47.5]} 10... Ke7 {[%clk 0:02:14.5]} 11.
O-O {[%clk 0:02:41.2]} 11... a6 {[%clk 0:02:12.3]} 12. Ba4 {[%clk 0:02:39.7]}
12... Nh6 {[%clk 0:02:05.1]} 13. Bxh6 {[%clk 0:02:37.3]} 13... gxh6 {[%clk
0:02:04.9]} 14. Nd2 {[%clk 0:02:36.7]} 14... Bg7 {[%clk 0:02:01.2]} 15. Rac1
{[%clk 0:02:34.4]} 15... Be5 {[%clk 0:01:58.2]} 16. Qd3 {[%clk 0:02:27]} 16...
Kf8 {[%clk 0:01:50.9]} 17. f4 {[%clk 0:02:26.6]} 17... Bxf4 {[%clk 0:01:44.8]}
18. g3 {[%clk 0:02:23.3]} 18... Bg5 {[%clk 0:01:37.9]} 19. Rce1 {[%clk
0:02:19.8]} 19... Kg7 {[%clk 0:01:33.9]} 20. Nf3 {[%clk 0:02:15.8]} 20... Rf8
{[%clk 0:01:21.3]} 21. Bc2 {[%clk 0:02:07.4]} 21... Kg8 {[%clk 0:00:57.4]} 22.
h4 {[%clk 0:02:06.9]} 22... Qc7 {[%clk 0:00:38.6]} 23. Kg2 {[%clk 0:01:59.4]}
23... Bxh4 {[%clk 0:00:27.1]} 24. gxh4 {[%clk 0:01:58.1]} 24... Nf4+ {[%clk
0:00:26.5]} 25. Kh1 {[%clk 0:01:54.3]} 25... Nxd3 {[%clk 0:00:26.1]} 26. Bxd3
{[%clk 0:01:54.2]} 26... Kh8 {[%clk 0:00:26.1]} 27. Ne5 {[%clk 0:01:52]} 27...
f6 {[%clk 0:00:24.8]} 28. Ng4 {[%clk 0:01:50.7]} 28... Qg7 {[%clk 0:00:20.3]}
29. Rg1 {[%clk 0:01:50]} 29... f5 {[%clk 0:00:18.1]} 30. Ne5 {[%clk 0:01:45.2]}
30... Qf6 {[%clk 0:00:17.2]} 31. Nd7 {[%clk 0:01:37.4]} 31... Qxh4+ {[%clk
0:00:16.3]} 32. Kg2 {[%clk 0:01:37.8]} 32... Rg8+ {[%clk 0:00:16.5]} 33. Kf3
{[%clk 0:01:36]} 33... Qh3+ {[%clk 0:00:16.4]} 34. Ke2 {[%clk 0:01:34.8]} 34...
Qh2+ {[%clk 0:00:14.6]} 35. Kd1 {[%clk 0:01:29.4]} 35... Rxg1 {[%clk 0:00:14.9]}
36. Rxg1 {[%clk 0:01:28.4]} 36... Qxg1+ {[%clk 0:00:15.8]} 37. Kc2 {[%clk
0:01:29.1]} 37... Qe3 {[%clk 0:00:15.9]} 38. c6 {[%clk 0:01:23.5]} 38... bxc6
{[%clk 0:00:15.6]} 39. Nc5 {[%clk 0:01:23.5]} 39... Rg8 {[%clk 0:00:14.7]} 40.
Bxa6 {[%clk 0:01:22]} 40... Rg2+ {[%clk 0:00:14.1]} 41. Kb3 {[%clk 0:01:21.7]}
41... h5 {[%clk 0:00:13.7]} 42. a4 {[%clk 0:01:18.7]} 42... h4 {[%clk
0:00:13.3]} 43. a5 {[%clk 0:01:18.3]} 43... h3 {[%clk 0:00:11.9]} 44. Bc8 {[%clk
0:01:17.2]} 44... h2 {[%clk 0:00:10.9]} 45. a6 {[%clk 0:01:17.4]} 45... h1=Q
{[%clk 0:00:10.2]} 46. a7 {[%clk 0:01:17.2]} 46... Qb1+ {[%clk 0:00:10]} 47. Ka4
{[%clk 0:01:16.4]} 47... Ra2# {[%clk 0:00:09.8]} 0-1

[Event "Late-Titled-Tuesday-Blitz-February-27-2024"]
[Site "Chess.com"]
[Date "2024.02.27"]
[Round "7"]
[White "Fjal"]
[Black "ArturoCaceres"]
[Result "1-0"]
[WhiteElo "2299"]
[BlackElo "2442"]
[TimeControl "180+1"]
[EndTime "15:15:57 PST"]
[Termination "Fjal won by resignation"]

1. Nf3 {[%clk 0:03:00.9]} 1... b6 {[%clk 0:02:57.9]} 2. g3 {[%clk 0:03:00.9]}
2... Bb7 {[%clk 0:02:55.4]} 3. Bg2 {[%clk 0:03:01.8]} 3... g6 {[%clk 0:02:53.1]}
4. O-O {[%clk 0:03:02.4]} 4... Bg7 {[%clk 0:02:53.7]} 5. c4 {[%clk 0:03:01]}
5... c5 {[%clk 0:02:52.7]} 6. Nc3 {[%clk 0:03:01.2]} 6... Nc6 {[%clk 0:02:51.7]}
7. e3 {[%clk 0:02:55.2]} 7... e6 {[%clk 0:02:45.6]} 8. d4 {[%clk 0:02:55.8]}
8... cxd4 {[%clk 0:02:46.5]} 9. exd4 {[%clk 0:02:56.4]} 9... Nf6 {[%clk
0:02:35.5]} 10. d5 {[%clk 0:02:54.7]} 10... exd5 {[%clk 0:02:35.4]} 11. cxd5
{[%clk 0:02:55.6]} 11... Nb4 {[%clk 0:02:30.4]} 12. Re1+ {[%clk 0:02:46.1]}
12... Kf8 {[%clk 0:02:30.4]} 13. Ne5 {[%clk 0:02:18.4]} 13... d6 {[%clk
0:02:23.7]} 14. Nc6 {[%clk 0:02:18.1]} 14... Bxc6 {[%clk 0:02:22.3]} 15. dxc6
{[%clk 0:02:19]} 15... Rc8 {[%clk 0:02:21.5]} 16. Bf4 {[%clk 0:02:07.7]} 16...
Nxc6 {[%clk 0:02:17.4]} 17. Bxd6+ {[%clk 0:01:52.4]} 17... Kg8 {[%clk
0:02:14.7]} 18. Qd2 {[%clk 0:01:25]} 18... h6 {[%clk 0:02:09.4]} 19. Rad1 {[%clk
0:01:25.2]} 19... Kh7 {[%clk 0:02:05.8]} 20. Qf4 {[%clk 0:01:21.9]} 20... Re8
{[%clk 0:01:55]} 21. Be5 {[%clk 0:00:48.8]} 21... Qe7 {[%clk 0:01:25.8]} 22.
Bxf6 {[%clk 0:00:45.6]} 22... Qxf6 {[%clk 0:01:22.9]} 23. Rxe8 {[%clk
0:00:44.1]} 23... Qxf4 {[%clk 0:01:20.8]} 24. gxf4 {[%clk 0:00:42.9]} 24... Rxe8
{[%clk 0:01:12.9]} 25. Bxc6 {[%clk 0:00:43]} 25... Rc8 {[%clk 0:01:13.2]} 26.
Bd5 {[%clk 0:00:36.5]} 26... Bxc3 {[%clk 0:01:08.8]} 27. bxc3 {[%clk 0:00:37.4]}
27... Rxc3 {[%clk 0:01:08.3]} 28. Bxf7 {[%clk 0:00:37.6]} 28... Kg7 {[%clk
0:01:07.5]} 29. Rd7 {[%clk 0:00:38.2]} 29... a5 {[%clk 0:00:58.6]} 30. Bb3+
{[%clk 0:00:36.2]} 30... Kh8 {[%clk 0:00:50.5]} 31. Rb7 {[%clk 0:00:33.5]} 31...
Rc6 {[%clk 0:00:49.9]} 32. Kg2 {[%clk 0:00:33.2]} 32... Rf6 {[%clk 0:00:49.4]}
33. Kg3 {[%clk 0:00:32.8]} 33... Rd6 {[%clk 0:00:43.4]} 34. h4 {[%clk
0:00:31.9]} 34... Rf6 {[%clk 0:00:40.9]} 35. Kg4 {[%clk 0:00:29.4]} 35... Rd6
{[%clk 0:00:38.9]} 36. Re7 {[%clk 0:00:28.4]} 36... Rf6 {[%clk 0:00:36.7]} 37.
Re6 {[%clk 0:00:27.9]} 37... h5+ {[%clk 0:00:32.1]} 38. Kg5 {[%clk 0:00:27.6]}
38... Rf5+ {[%clk 0:00:32.5]} 39. Kxg6 {[%clk 0:00:28.1]} 1-0

[Event "Late-Titled-Tuesday-Blitz-February-27-2024"]
[Site "Chess.com"]
[Date "2024.02.27"]
[Round "7"]
[White "el008"]
[Black "IlanSchnaider"]
[Result "1-0"]
[WhiteElo "2512"]
[BlackElo "2698"]
[TimeControl "180+1"]
[EndTime "15:15:58 PST"]
[Termination "el008 won by resignation"]

1. Nf3 {[%clk 0:03:00.9]} 1... Nf6 {[%clk 0:02:23.7]} 2. b3 {[%clk 0:03:00.4]}
2... g6 {[%clk 0:02:23.6]} 3. Bb2 {[%clk 0:03:01]} 3... Bg7 {[%clk 0:02:24.1]}
4. e3 {[%clk 0:03:01.1]} 4... O-O {[%clk 0:02:24.5]} 5. Be2 {[%clk 0:03:01.5]}
5... d5 {[%clk 0:02:25.1]} 6. O-O {[%clk 0:03:02.2]} 6... c5 {[%clk 0:02:25.6]}
7. c4 {[%clk 0:03:03]} 7... d4 {[%clk 0:02:20.8]} 8. exd4 {[%clk 0:02:56.5]}
8... Nh5 {[%clk 0:02:21]} 9. d3 {[%clk 0:02:55.9]} 9... cxd4 {[%clk 0:02:19.2]}
10. Re1 {[%clk 0:02:56.1]} 10... Nc6 {[%clk 0:02:19.2]} 11. a3 {[%clk
0:02:54.4]} 11... Nf4 {[%clk 0:02:18.9]} 12. b4 {[%clk 0:02:53]} 12... Bf5
{[%clk 0:02:09.1]} 13. Bf1 {[%clk 0:02:51.3]} 13... Qd7 {[%clk 0:01:59.8]} 14.
Bc1 {[%clk 0:02:44.4]} 14... e5 {[%clk 0:01:46.6]} 15. b5 {[%clk 0:02:32.9]}
15... Na5 {[%clk 0:01:38.4]} 16. Nxe5 {[%clk 0:02:33]} 16... Bxe5 {[%clk
0:01:37.9]} 17. Rxe5 {[%clk 0:02:33.9]} 17... Nh5 {[%clk 0:01:21.4]} 18. Bd2
{[%clk 0:02:24.7]} 18... b6 {[%clk 0:01:19.8]} 19. Bxa5 {[%clk 0:02:23.7]} 19...
bxa5 {[%clk 0:01:20.2]} 20. Nd2 {[%clk 0:02:23.2]} 20... Qd6 {[%clk 0:01:15.2]}
21. Rxf5 {[%clk 0:02:23.1]} 21... gxf5 {[%clk 0:01:11.5]} 22. Qxh5 {[%clk
0:02:23.4]} 22... Qf6 {[%clk 0:01:01.6]} 23. g3 {[%clk 0:02:20.1]} 23... Rfe8
{[%clk 0:00:59.8]} 24. c5 {[%clk 0:02:13.9]} 24... Re5 {[%clk 0:00:54]} 25. Rc1
{[%clk 0:02:13.2]} 25... f4 {[%clk 0:00:53.4]} 26. Qf3 {[%clk 0:02:11.2]} 26...
Rc8 {[%clk 0:00:51.8]} 27. Ne4 {[%clk 0:02:10.6]} 27... Qh6 {[%clk 0:00:50.1]}
28. Qxf4 {[%clk 0:02:09.1]} 28... Qe6 {[%clk 0:00:40.2]} 29. Bh3 {[%clk
0:02:08.5]} 29... f5 {[%clk 0:00:34.5]} 30. a4 {[%clk 0:01:16.6]} 30... Rf8
{[%clk 0:00:16.4]} 31. c6 {[%clk 0:01:15.2]} 31... Qe7 {[%clk 0:00:06.7]} 32.
Qg5+ {[%clk 0:01:12.8]} 32... Qxg5 {[%clk 0:00:05]} 33. Nxg5 {[%clk 0:01:13.7]}
33... Rc8 {[%clk 0:00:04]} 34. Nf3 {[%clk 0:01:12.6]} 34... Rd5 {[%clk
0:00:03.8]} 35. Nh4 {[%clk 0:01:11.2]} 35... Kf8 {[%clk 0:00:02.1]} 36. Bxf5
{[%clk 0:01:11.3]} 36... Rc7 {[%clk 0:00:02.1]} 37. Be4 {[%clk 0:01:03.4]} 37...
Re5 {[%clk 0:00:02.2]} 38. Nf3 {[%clk 0:01:03.7]} 38... Ree7 {[%clk 0:00:01.9]}
39. Nxd4 {[%clk 0:01:04.1]} 39... Ke8 {[%clk 0:00:02]} 40. Nf5 {[%clk
0:01:03.8]} 40... Re6 {[%clk 0:00:02.1]} 41. Ng7+ {[%clk 0:01:01.5]} 41... Rxg7
{[%clk 0:00:02.1]} 42. c7 {[%clk 0:01:02.4]} 42... Rxc7 {[%clk 0:00:01.6]} 43.
Rxc7 {[%clk 0:01:03.3]} 43... Rxe4 {[%clk 0:00:01.3]} 44. dxe4 {[%clk
0:01:03.4]} 44... a6 {[%clk 0:00:01.7]} 45. bxa6 {[%clk 0:01:02.9]} 1-0

[Event "Late-Titled-Tuesday-Blitz-February-27-2024"]
[Site "Chess.com"]
[Date "2024.02.27"]
[Round "7"]
[White "Ali_rastbod"]
[Black "Narek_Ghimoyan"]
[Result "1-0"]
[WhiteElo "2719"]
[BlackElo "2413"]
[TimeControl "180+1"]
[EndTime "15:16:01 PST"]
[Termination "Ali_rastbod won by resignation"]

1. d4 {[%clk 0:03:00.9]} 1... d5 {[%clk 0:02:59.5]} 2. Nc3 {[%clk 0:03:00.1]}
2... Nf6 {[%clk 0:02:58.6]} 3. Bf4 {[%clk 0:03:00.5]} 3... a6 {[%clk 0:02:58.9]}
4. e3 {[%clk 0:02:59.9]} 4... e6 {[%clk 0:02:59.1]} 5. g4 {[%clk 0:02:57.9]}
5... c5 {[%clk 0:02:57.1]} 6. g5 {[%clk 0:02:56.8]} 6... Nfd7 {[%clk 0:02:57.3]}
7. Qg4 {[%clk 0:02:47]} 7... Nc6 {[%clk 0:02:56.8]} 8. O-O-O {[%clk 0:02:46.3]}
8... cxd4 {[%clk 0:02:42.5]} 9. exd4 {[%clk 0:02:47.2]} 9... Bb4 {[%clk
0:02:41.3]} 10. Qg3 {[%clk 0:02:35.3]} 10... Qa5 {[%clk 0:02:39.3]} 11. Nge2
{[%clk 0:02:35.6]} 11... b5 {[%clk 0:02:32]} 12. Kb1 {[%clk 0:02:35]} 12... Nb6
{[%clk 0:02:30.3]} 13. b3 {[%clk 0:02:24.9]} 13... Bb7 {[%clk 0:02:24.3]} 14.
Bd6 {[%clk 0:02:07.4]} 14... Bxd6 {[%clk 0:02:17.5]} 15. Qxd6 {[%clk 0:02:08.3]}
15... b4 {[%clk 0:01:59.1]} 16. Na4 {[%clk 0:01:41.9]} 16... Nxa4 {[%clk
0:01:56.2]} 17. bxa4 {[%clk 0:01:42.8]} 17... Qxa4 {[%clk 0:01:51.2]} 18. Nc1
{[%clk 0:01:39]} 18... Na5 {[%clk 0:01:44.2]} 19. Nb3 {[%clk 0:01:29.3]} 19...
Nxb3 {[%clk 0:01:42.5]} 20. cxb3 {[%clk 0:01:27.2]} 20... Qd7 {[%clk 0:01:28.1]}
21. Qxb4 {[%clk 0:01:25.5]} 21... a5 {[%clk 0:01:28]} 22. Qb5 {[%clk 0:01:23.1]}
22... Qxb5 {[%clk 0:01:20.3]} 23. Bxb5+ {[%clk 0:01:24]} 23... Ke7 {[%clk
0:01:20.5]} 24. f4 {[%clk 0:01:24.6]} 24... g6 {[%clk 0:01:14.9]} 25. h4 {[%clk
0:01:24.3]} 25... h5 {[%clk 0:01:14.6]} 26. Rc1 {[%clk 0:01:23.5]} 26... Rhc8
{[%clk 0:01:09.3]} 27. Rxc8 {[%clk 0:01:23.3]} 27... Rxc8 {[%clk 0:01:08.6]} 28.
Rc1 {[%clk 0:01:24.2]} 28... Rxc1+ {[%clk 0:00:48.2]} 29. Kxc1 {[%clk
0:01:25.1]} 29... f6 {[%clk 0:00:48.8]} 30. gxf6+ {[%clk 0:01:19]} 30... Kxf6
{[%clk 0:00:49.7]} 31. Bd3 {[%clk 0:01:17.9]} 31... Bc6 {[%clk 0:00:32.7]} 32.
Kb2 {[%clk 0:01:15]} 32... Be8 {[%clk 0:00:32.1]} 33. a4 {[%clk 0:01:09.7]}
33... Ke7 {[%clk 0:00:25.2]} 34. Ka3 {[%clk 0:01:10.1]} 34... Kd6 {[%clk
0:00:15.3]} 35. b4 {[%clk 0:01:10.2]} 35... axb4+ {[%clk 0:00:16.2]} 36. Kxb4
{[%clk 0:01:11.1]} 36... Kc7 {[%clk 0:00:16.5]} 37. a5 {[%clk 0:01:10.2]} 37...
Kd6 {[%clk 0:00:14.2]} 38. Bb5 {[%clk 0:01:03.1]} 38... Bf7 {[%clk 0:00:07.2]}
39. a6 {[%clk 0:01:03.2]} 39... Kc7 {[%clk 0:00:06.9]} 40. Kc5 {[%clk
0:01:03.8]} 40... e5 {[%clk 0:00:06.7]} 41. Bc6 {[%clk 0:01:00]} 41... e4 {[%clk
0:00:04.1]} 42. a7 {[%clk 0:00:59.6]} 1-0

[Event "Late-Titled-Tuesday-Blitz-February-27-2024"]
[Site "Chess.com"]
[Date "2024.02.27"]
[Round "7"]
[White "DraningWaterHi"]
[Black "SergioMoralesG"]
[Result "0-1"]
[WhiteElo "2245"]
[BlackElo "2522"]
[TimeControl "180+1"]
[EndTime "15:16:01 PST"]
[Termination "SergioMoralesG won by checkmate"]

1. d4 {[%clk 0:03:00.9]} 1... d5 {[%clk 0:01:19.7]} 2. c4 {[%clk 0:02:59.8]}
2... c6 {[%clk 0:01:19.7]} 3. Nf3 {[%clk 0:02:59.2]} 3... Nf6 {[%clk 0:01:20.3]}
4. Bf4 {[%clk 0:02:56]} 4... dxc4 {[%clk 0:01:18]} 5. a4 {[%clk 0:02:54.7]} 5...
Nbd7 {[%clk 0:01:15.8]} 6. Nbd2 {[%clk 0:02:52.6]} 6... Nb6 {[%clk 0:01:14.9]}
7. e3 {[%clk 0:02:46]} 7... Nbd5 {[%clk 0:01:14.6]} 8. Bxc4 {[%clk 0:02:43.8]}
8... Nxf4 {[%clk 0:01:14.2]} 9. exf4 {[%clk 0:02:44.7]} 9... e6 {[%clk
0:01:14.3]} 10. O-O {[%clk 0:02:44.4]} 10... Bd6 {[%clk 0:01:12.5]} 11. Ne5
{[%clk 0:02:44.6]} 11... O-O {[%clk 0:01:12.4]} 12. g3 {[%clk 0:02:44.4]} 12...
Bd7 {[%clk 0:01:00.6]} 13. Nb3 {[%clk 0:02:42.7]} 13... Rc8 {[%clk 0:00:57.6]}
14. Qf3 {[%clk 0:02:31.1]} 14... g6 {[%clk 0:00:57.2]} 15. Rfd1 {[%clk
0:02:30.8]} 15... Kg7 {[%clk 0:00:56.7]} 16. a5 {[%clk 0:02:28.1]} 16... Qe7
{[%clk 0:00:50.7]} 17. Rac1 {[%clk 0:02:19]} 17... Rfd8 {[%clk 0:00:50.2]} 18.
h4 {[%clk 0:02:16.9]} 18... h5 {[%clk 0:00:49.4]} 19. Bd3 {[%clk 0:01:59.1]}
19... Be8 {[%clk 0:00:49.1]} 20. Be4 {[%clk 0:01:51.9]} 20... Nd5 {[%clk
0:00:48.8]} 21. Bxd5 {[%clk 0:01:51.8]} 21... cxd5 {[%clk 0:00:43.9]} 22. Nd3
{[%clk 0:01:46.7]} 22... b6 {[%clk 0:00:41.7]} 23. axb6 {[%clk 0:01:45.7]} 23...
axb6 {[%clk 0:00:42.6]} 24. Ra1 {[%clk 0:01:43.6]} 24... Bb5 {[%clk 0:00:38.5]}
25. Ne5 {[%clk 0:01:42.1]} 25... Rc2 {[%clk 0:00:32.9]} 26. Rd2 {[%clk
0:01:37.6]} 26... Rdc8 {[%clk 0:00:31.5]} 27. Qe3 {[%clk 0:01:31.9]} 27... Bb4
{[%clk 0:00:29.2]} 28. Rxc2 {[%clk 0:01:26]} 28... Rxc2 {[%clk 0:00:30.1]} 29.
Ra2 {[%clk 0:01:15.3]} 29... Qc7 {[%clk 0:00:29.1]} 30. Kg2 {[%clk 0:01:09.8]}
30... Re2 {[%clk 0:00:28.3]} 31. Qf3 {[%clk 0:01:06.7]} 31... Be1 {[%clk
0:00:28.4]} 32. Nd3 {[%clk 0:00:56.6]} 32... Bxd3 {[%clk 0:00:28.1]} 33. Qxd3
{[%clk 0:00:57.5]} 33... Rxf2+ {[%clk 0:00:28.3]} 34. Kh3 {[%clk 0:00:57.7]}
34... Qd7 {[%clk 0:00:21.2]} 35. g4 {[%clk 0:00:45.3]} 35... hxg4+ {[%clk
0:00:15.7]} 36. Kxg4 {[%clk 0:00:46.2]} 36... e5+ {[%clk 0:00:15.8]} 37. f5
{[%clk 0:00:44.7]} 37... Rxf5 {[%clk 0:00:10.8]} 38. Ra7 {[%clk 0:00:39.3]}
38... Rf4+ {[%clk 0:00:10]} 39. Kg5 {[%clk 0:00:37.4]} 39... f6# {[%clk
0:00:08.5]} 0-1

[Event "Late-Titled-Tuesday-Blitz-February-27-2024"]
[Site "Chess.com"]
[Date "2024.02.27"]
[Round "7"]
[White "SocoLoco"]
[Black "cthake"]
[Result "1-0"]
[WhiteElo "2215"]
[BlackElo "1818"]
[TimeControl "180+1"]
[EndTime "15:16:06 PST"]
[Termination "SocoLoco won by resignation"]

1. e4 {[%clk 0:03:00.9]} 1... e6 {[%clk 0:02:59.4]} 2. d3 {[%clk 0:02:55.2]}
2... d5 {[%clk 0:02:59.3]} 3. Nc3 {[%clk 0:02:44.8]} 3... Nf6 {[%clk 0:02:57.3]}
4. Bg5 {[%clk 0:02:34]} 4... Be7 {[%clk 0:02:56]} 5. Nf3 {[%clk 0:02:24.4]} 5...
h6 {[%clk 0:02:46.5]} 6. Bd2 {[%clk 0:02:20.3]} 6... d4 {[%clk 0:02:38.5]} 7.
Ne2 {[%clk 0:02:19.6]} 7... c5 {[%clk 0:02:38.5]} 8. g3 {[%clk 0:02:19.9]} 8...
b6 {[%clk 0:02:37.4]} 9. Bg2 {[%clk 0:02:20.2]} 9... Bb7 {[%clk 0:02:37.6]} 10.
a4 {[%clk 0:02:19.2]} 10... Nc6 {[%clk 0:02:32.9]} 11. O-O {[%clk 0:02:15.9]}
11... O-O {[%clk 0:02:32.7]} 12. Qc1 {[%clk 0:02:05.4]} 12... e5 {[%clk
0:02:31.6]} 13. h3 {[%clk 0:02:00.7]} 13... Nh7 {[%clk 0:02:21.1]} 14. Nh2
{[%clk 0:01:39.4]} 14... Bc8 {[%clk 0:02:11.3]} 15. f4 {[%clk 0:01:38.6]} 15...
f6 {[%clk 0:02:10]} 16. f5 {[%clk 0:01:31.4]} 16... Bd7 {[%clk 0:02:06.4]} 17.
g4 {[%clk 0:01:29.4]} 17... Be8 {[%clk 0:01:59.9]} 18. Nf3 {[%clk 0:01:28.3]}
18... Ng5 {[%clk 0:01:58.9]} 19. h4 {[%clk 0:01:23.9]} 19... Nxf3+ {[%clk
0:01:57.6]} 20. Bxf3 {[%clk 0:01:20.6]} 20... Bf7 {[%clk 0:01:51.9]} 21. Kf2
{[%clk 0:01:19.5]} 21... a6 {[%clk 0:01:49.6]} 22. Rg1 {[%clk 0:01:19.3]} 22...
b5 {[%clk 0:01:47.5]} 23. g5 {[%clk 0:01:18.9]} 23... fxg5 {[%clk 0:01:45.8]}
24. hxg5 {[%clk 0:01:17.5]} 24... hxg5 {[%clk 0:01:29.5]} 25. Bxg5 {[%clk
0:01:15.9]} 25... Bxg5 {[%clk 0:01:29.7]} 26. Rxg5 {[%clk 0:01:16.1]} 26... Qf6
{[%clk 0:01:26.6]} 27. Qg1 {[%clk 0:01:07]} 27... Rfe8 {[%clk 0:01:23.3]} 28.
Qg2 {[%clk 0:01:04]} 28... Re7 {[%clk 0:01:14.2]} 29. Rh1 {[%clk 0:00:58]} 29...
Kf8 {[%clk 0:01:08.6]} 30. Rh8+ {[%clk 0:00:36.3]} 30... Bg8 {[%clk 0:01:08.4]}
31. Bh5 {[%clk 0:00:36.1]} 31... Nd8 {[%clk 0:00:59.8]} 32. Qg4 {[%clk
0:00:35.1]} 32... Nf7 {[%clk 0:00:58.8]} 33. Bxf7 {[%clk 0:00:33]} 33... Qxf7
{[%clk 0:00:56.8]} 34. Ng3 {[%clk 0:00:32.6]} 34... c4 {[%clk 0:00:55.6]} 35.
Nh5 {[%clk 0:00:31.9]} 35... Raa7 {[%clk 0:00:53.3]} 36. f6 {[%clk 0:00:30]}
36... Rec7 {[%clk 0:00:44]} 37. Rxg7 {[%clk 0:00:24.2]} 37... Qxf6+ {[%clk
0:00:33]} 38. Nxf6 {[%clk 0:00:21.9]} 38... Rxg7 {[%clk 0:00:33.3]} 39. Rxg8+
{[%clk 0:00:22.5]} 39... Rxg8 {[%clk 0:00:29]} 40. Qxg8+ {[%clk 0:00:22.2]}
40... Ke7 {[%clk 0:00:29.1]} 41. Qg7+ {[%clk 0:00:22.2]} 1-0

[Event "Late-Titled-Tuesday-Blitz-February-27-2024"]
[Site "Chess.com"]
[Date "2024.02.27"]
[Round "7"]
[White "JaackCamel"]
[Black "giomar27"]
[Result "0-1"]
[WhiteElo "2232"]
[BlackElo "2405"]
[TimeControl "180+1"]
[EndTime "15:16:08 PST"]
[Termination "giomar27 won on time"]

1. d4 {[%clk 0:03:00.9]} 1... b6 {[%clk 0:02:54.5]} 2. c4 {[%clk 0:02:57.7]}
2... Bb7 {[%clk 0:02:54]} 3. Nc3 {[%clk 0:02:56.3]} 3... g6 {[%clk 0:02:53.9]}
4. e4 {[%clk 0:02:55.7]} 4... Bg7 {[%clk 0:02:53.7]} 5. Nf3 {[%clk 0:02:53.6]}
5... d6 {[%clk 0:02:52]} 6. Be2 {[%clk 0:02:48.9]} 6... e6 {[%clk 0:02:51.8]} 7.
O-O {[%clk 0:02:48]} 7... a6 {[%clk 0:02:51.5]} 8. Be3 {[%clk 0:02:45.4]} 8...
h6 {[%clk 0:02:50.7]} 9. Nd2 {[%clk 0:02:39.6]} 9... Nd7 {[%clk 0:02:50.6]} 10.
Rc1 {[%clk 0:02:31.8]} 10... Ne7 {[%clk 0:02:50.3]} 11. b4 {[%clk 0:02:27.7]}
11... O-O {[%clk 0:02:49.9]} 12. a3 {[%clk 0:02:27.1]} 12... f5 {[%clk 0:02:48]}
13. f3 {[%clk 0:02:24.8]} 13... Nf6 {[%clk 0:02:44.6]} 14. Qc2 {[%clk
0:02:14.6]} 14... g5 {[%clk 0:02:42.1]} 15. Bd3 {[%clk 0:01:54.6]} 15... Nh5
{[%clk 0:02:39.7]} 16. Ne2 {[%clk 0:01:41]} 16... Qd7 {[%clk 0:02:30.6]} 17. c5
{[%clk 0:01:35.6]} 17... Rad8 {[%clk 0:02:20.3]} 18. d5 {[%clk 0:01:23.2]} 18...
dxc5 {[%clk 0:02:18]} 19. bxc5 {[%clk 0:01:11.5]} 19... exd5 {[%clk 0:02:17.4]}
20. exf5 {[%clk 0:01:00.8]} 20... d4 {[%clk 0:02:11.9]} 21. Bf2 {[%clk
0:00:50.6]} 21... Nc6 {[%clk 0:01:45.3]} 22. Qa2+ {[%clk 0:00:36.8]} 22... Kh8
{[%clk 0:01:42.8]} 23. Ne4 {[%clk 0:00:20.2]} 23... Ne5 {[%clk 0:01:42]} 24.
Rfd1 {[%clk 0:00:17.5]} 24... Nxd3 {[%clk 0:01:39.2]} 25. Rxd3 {[%clk
0:00:17.3]} 25... Qxf5 {[%clk 0:01:39.9]} 26. c6 {[%clk 0:00:16.7]} 26... Bc8
{[%clk 0:01:39.1]} 27. Rcd1 {[%clk 0:00:16.5]} 27... Be6 {[%clk 0:01:39.1]} 28.
Qc2 {[%clk 0:00:15.5]} 28... b5 {[%clk 0:01:35.1]} 29. Qc1 {[%clk 0:00:14.5]}
29... Bc4 {[%clk 0:01:33.4]} 30. R3d2 {[%clk 0:00:14.3]} 30... d3 {[%clk
0:01:32.7]} 31. N2g3 {[%clk 0:00:14.1]} 31... Nxg3 {[%clk 0:01:31.5]} 32. Bxg3
{[%clk 0:00:13]} 32... Bd4+ {[%clk 0:01:28.9]} 33. Kh1 {[%clk 0:00:12.9]} 33...
Be3 {[%clk 0:01:28.6]} 34. a4 {[%clk 0:00:12.4]} 34... Bxd2 {[%clk 0:01:28]} 35.
Nxd2 {[%clk 0:00:12]} 35... Rfe8 {[%clk 0:01:24.6]} 36. Qc3+ {[%clk 0:00:11.9]}
36... Kg8 {[%clk 0:01:23.1]} 37. Ne4 {[%clk 0:00:12.2]} 37... Rxe4 {[%clk
0:01:13.1]} 38. fxe4 {[%clk 0:00:10.7]} 38... Qxe4 {[%clk 0:01:14]} 39. Qf6
{[%clk 0:00:09.3]} 39... Rf8 {[%clk 0:01:10.2]} 40. Qxh6 {[%clk 0:00:08.7]}
40... Qf5 {[%clk 0:01:10.7]} 41. h4 {[%clk 0:00:07.8]} 41... Qg4 {[%clk
0:01:00.8]} 42. Re1 {[%clk 0:00:05.3]} 42... gxh4 {[%clk 0:00:51.5]} 43. Re7
{[%clk 0:00:03]} 43... Rf1+ {[%clk 0:00:51.2]} 0-1